[Event "Late-Titled-Tuesday-Blitz-June-25-2024"]
[Site "Chess.com"]
[Date "2024.06.25"]
[Round "3"]
[White "Frankie_Badacsonyi"]
[Black "fin"]
[Result "1/2-1/2"]
[WhiteElo "2496"]
[BlackElo "2731"]
[TimeControl "180+1"]
[EndTime "14:26:19 PDT"]
[Termination "Game drawn by agreement"]

1. d4 {[%clk 0:03:00.9]} 1... f5 {[%clk 0:02:59.5]} 2. c4 {[%clk 0:02:59.8]}
2... Nf6 {[%clk 0:02:59.3]} 3. Nf3 {[%clk 0:02:59.4]} 3... e6 {[%clk 0:02:59.8]}
4. g3 {[%clk 0:02:59.2]} 4... Bb4+ {[%clk 0:03:00.2]} 5. Bd2 {[%clk 0:02:58.6]}
5... Be7 {[%clk 0:03:01]} 6. Bg2 {[%clk 0:02:58.2]} 6... O-O {[%clk 0:03:01.9]}
7. O-O {[%clk 0:02:57.7]} 7... d6 {[%clk 0:03:02.6]} 8. Nc3 {[%clk 0:02:52.1]}
8... Ne4 {[%clk 0:03:02.7]} 9. Qc2 {[%clk 0:02:49.3]} 9... Nxd2 {[%clk
0:02:59.1]} 10. Qxd2 {[%clk 0:02:42.1]} 10... Nc6 {[%clk 0:02:53.1]} 11. d5
{[%clk 0:02:35.5]} 11... Ne5 {[%clk 0:02:52.3]} 12. Nxe5 {[%clk 0:02:22.7]}
12... dxe5 {[%clk 0:02:52.4]} 13. Rfd1 {[%clk 0:02:22.6]} 13... e4 {[%clk
0:02:44.2]} 14. dxe6 {[%clk 0:02:09.6]} 14... Bxe6 {[%clk 0:02:38.1]} 15. b3
{[%clk 0:01:55.7]} 15... c6 {[%clk 0:02:35.4]} 16. e3 {[%clk 0:01:39.1]} 16...
Bf6 {[%clk 0:02:32]} 17. Qc2 {[%clk 0:01:37.9]} 17... Qa5 {[%clk 0:02:29.5]} 18.
Rac1 {[%clk 0:01:29.9]} 18... Rad8 {[%clk 0:02:29.1]} 19. Ne2 {[%clk 0:01:23.2]}
19... Rxd1+ {[%clk 0:02:18.6]} 20. Rxd1 {[%clk 0:01:24.1]} 20... Rd8 {[%clk
0:02:19]} 21. Rxd8+ {[%clk 0:01:23.3]} 21... Qxd8 {[%clk 0:02:17.2]} 22. Nf4
{[%clk 0:01:18.2]} 22... Bf7 {[%clk 0:02:16.8]} 23. h4 {[%clk 0:01:17.7]} 23...
g6 {[%clk 0:02:14.3]} 24. Bf1 {[%clk 0:01:14.5]} 24... h6 {[%clk 0:02:12.3]} 25.
c5 {[%clk 0:01:03.4]} 25... g5 {[%clk 0:02:09.5]} 26. hxg5 {[%clk 0:01:03.6]}
26... hxg5 {[%clk 0:02:10.4]} 27. Ng2 {[%clk 0:00:57]} 27... Kg7 {[%clk
0:02:04.6]} 28. Bc4 {[%clk 0:00:52.9]} 28... Bxc4 {[%clk 0:02:04.6]} 29. Qxc4
{[%clk 0:00:53.8]} 29... Qd1+ {[%clk 0:02:04.6]} 30. Kh2 {[%clk 0:00:53.6]}
30... Qd5 {[%clk 0:01:40.4]} 31. Qc2 {[%clk 0:00:47.1]} 31... a5 {[%clk
0:01:38]} 32. a3 {[%clk 0:00:42.8]} 32... Kg6 {[%clk 0:01:31.2]} 33. b4 {[%clk
0:00:42.4]} 33... axb4 {[%clk 0:01:30.7]} 34. axb4 {[%clk 0:00:43.3]} 34... Qd3
{[%clk 0:01:24.1]} 35. Qa2 {[%clk 0:00:41.3]} 35... Kg7 {[%clk 0:01:15.4]} 36.
Qe6 {[%clk 0:00:40.3]} 36... Kg6 {[%clk 0:00:51.4]} 1/2-1/2

[Event "Late-Titled-Tuesday-Blitz-June-25-2024"]
[Site "Chess.com"]
[Date "2024.06.25"]
[Round "3"]
[White "BlueWizzard"]
[Black "Walter_White_Poland"]
[Result "1-0"]
[WhiteElo "2928"]
[BlackElo "2418"]
[TimeControl "180+1"]
[EndTime "14:26:20 PDT"]
[Termination "BlueWizzard won on time"]

1. d4 {[%clk 0:03:00.9]} 1... d5 {[%clk 0:02:57.8]} 2. Nc3 {[%clk 0:03:01.5]}
2... e6 {[%clk 0:02:55.8]} 3. Nf3 {[%clk 0:03:01]} 3... Nf6 {[%clk 0:02:55.2]}
4. Bg5 {[%clk 0:03:01]} 4... Bb4 {[%clk 0:02:53.2]} 5. Qd3 {[%clk 0:03:01.3]}
5... h6 {[%clk 0:02:48.5]} 6. Bxf6 {[%clk 0:03:00.7]} 6... Qxf6 {[%clk
0:02:46.2]} 7. e4 {[%clk 0:03:01.2]} 7... dxe4 {[%clk 0:02:41.3]} 8. Qxe4 {[%clk
0:03:02.1]} 8... Qf5 {[%clk 0:02:26.3]} 9. Qxf5 {[%clk 0:02:57.8]} 9... exf5
{[%clk 0:02:11.3]} 10. O-O-O {[%clk 0:02:55.9]} 10... c6 {[%clk 0:01:57.3]} 11.
Bc4 {[%clk 0:02:53.4]} 11... Ke7 {[%clk 0:01:55.5]} 12. Ne5 {[%clk 0:02:50.2]}
12... Be6 {[%clk 0:01:51.9]} 13. Rhe1 {[%clk 0:02:43.5]} 13... Kf6 {[%clk
0:01:39]} 14. d5 {[%clk 0:02:28.1]} 14... cxd5 {[%clk 0:01:38.5]} 15. Bxd5
{[%clk 0:02:26.4]} 15... Bxc3 {[%clk 0:01:37.6]} 16. bxc3 {[%clk 0:02:26.5]}
16... Nc6 {[%clk 0:01:31.3]} 17. Nxc6 {[%clk 0:02:18.3]} 17... bxc6 {[%clk
0:01:31]} 18. Bxe6 {[%clk 0:02:19]} 18... fxe6 {[%clk 0:01:30.2]} 19. Rd6 {[%clk
0:02:19.5]} 19... Rhe8 {[%clk 0:01:23.9]} 20. Rxc6 {[%clk 0:02:19.7]} 20... Rac8
{[%clk 0:01:24.4]} 21. Rexe6+ {[%clk 0:02:18.7]} 21... Rxe6 {[%clk 0:01:23.1]}
22. Rxc8 {[%clk 0:02:19.3]} 22... Re2 {[%clk 0:01:21.3]} 23. c4 {[%clk
0:02:08.7]} 23... Rxf2 {[%clk 0:01:20.8]} 24. Rd8 {[%clk 0:02:08.7]} 24... Rxg2
{[%clk 0:01:01.9]} 25. Kb2 {[%clk 0:02:00.9]} 25... Ke7 {[%clk 0:00:53.3]} 26.
Rd3 {[%clk 0:01:57.9]} 26... Rxh2 {[%clk 0:00:47.5]} 27. c5 {[%clk 0:01:55.1]}
27... Rh5 {[%clk 0:00:39.1]} 28. Rd5 {[%clk 0:01:37.5]} 28... Rh4 {[%clk
0:00:20.2]} 29. Kb3 {[%clk 0:01:33.8]} 29... Ke6 {[%clk 0:00:19.6]} 30. Rd6+
{[%clk 0:01:25.6]} 30... Ke5 {[%clk 0:00:18.7]} 31. Rd8 {[%clk 0:01:22]} 31...
a5 {[%clk 0:00:09.1]} 32. a3 {[%clk 0:01:16.7]} 32... a4+ {[%clk 0:00:08.7]} 33.
Kc3 {[%clk 0:01:17.4]} 33... f4 {[%clk 0:00:02.8]} 34. c6 {[%clk 0:01:16.1]}
34... f3 {[%clk 0:00:02.7]} 35. c7 {[%clk 0:01:15.3]} 1-0

[Event "Late-Titled-Tuesday-Blitz-June-25-2024"]
[Site "Chess.com"]
[Date "2024.06.25"]
[Round "3"]
[White "Roedor"]
[Black "katharinareinecke"]
[Result "1-0"]
[WhiteElo "2403"]
[BlackElo "2038"]
[TimeControl "180+1"]
[EndTime "14:26:20 PDT"]
[Termination "Roedor won by resignation"]

1. d4 {[%clk 0:02:59.5]} 1... d5 {[%clk 0:02:58.5]} 2. Nf3 {[%clk 0:02:55.3]}
2... Nf6 {[%clk 0:02:58.4]} 3. c4 {[%clk 0:02:54.7]} 3... c6 {[%clk 0:02:57.9]}
4. Qb3 {[%clk 0:02:53.4]} 4... e6 {[%clk 0:02:54.1]} 5. Nc3 {[%clk 0:02:52.9]}
5... Be7 {[%clk 0:02:52.4]} 6. Bg5 {[%clk 0:02:52.9]} 6... O-O {[%clk
0:02:52.1]} 7. e3 {[%clk 0:02:52.9]} 7... Qb6 {[%clk 0:02:48.8]} 8. c5 {[%clk
0:02:52.2]} 8... Qc7 {[%clk 0:02:37.2]} 9. Bf4 {[%clk 0:02:51.4]} 9... Qd7
{[%clk 0:02:30.1]} 10. h3 {[%clk 0:02:49.7]} 10... Re8 {[%clk 0:02:24.8]} 11.
Bd3 {[%clk 0:02:49.1]} 11... Na6 {[%clk 0:02:19.6]} 12. O-O {[%clk 0:02:46]}
12... Nc7 {[%clk 0:02:19]} 13. Qc2 {[%clk 0:02:44]} 13... b6 {[%clk 0:02:01.6]}
14. Ne5 {[%clk 0:02:41]} 14... Qd8 {[%clk 0:01:52.1]} 15. Nxc6 {[%clk
0:02:27.5]} 15... Qd7 {[%clk 0:01:52]} 16. Nxe7+ {[%clk 0:02:21.1]} 16... Qxe7
{[%clk 0:01:51.7]} 17. b4 {[%clk 0:02:09.6]} 17... Ba6 {[%clk 0:01:47.2]} 18. b5
{[%clk 0:02:02.2]} 18... Bb7 {[%clk 0:01:41.4]} 19. c6 {[%clk 0:01:55.1]} 19...
Bc8 {[%clk 0:01:41.2]} 20. a4 {[%clk 0:01:52.1]} 20... Nh5 {[%clk 0:01:17.6]}
21. Bxh7+ {[%clk 0:01:45.5]} 21... Kh8 {[%clk 0:01:17.5]} 22. Be5 {[%clk
0:01:40.6]} 22... f6 {[%clk 0:01:10.1]} 23. Qg6 {[%clk 0:01:31.7]} 23... fxe5
{[%clk 0:00:40]} 24. Qxh5 {[%clk 0:01:28.1]} 24... g6 {[%clk 0:00:13.6]} 25.
Bxg6+ {[%clk 0:01:24.5]} 25... Kg7 {[%clk 0:00:13.7]} 26. Bxe8 {[%clk
0:01:08.2]} 26... Nxe8 {[%clk 0:00:13.1]} 27. Qxe5+ {[%clk 0:01:06.8]} 27... Nf6
{[%clk 0:00:12]} 28. Nxd5 {[%clk 0:01:01]} 28... Kf7 {[%clk 0:00:05.8]} 29. Nxe7
{[%clk 0:01:00]} 1-0

[Event "Late-Titled-Tuesday-Blitz-June-25-2024"]
[Site "Chess.com"]
[Date "2024.06.25"]
[Round "3"]
[White "alexrustemov"]
[Black "Perecke"]
[Result "1-0"]
[WhiteElo "2835"]
[BlackElo "2511"]
[TimeControl "180+1"]
[EndTime "14:26:25 PDT"]
[Termination "alexrustemov won by resignation"]

1. d4 {[%clk 0:02:56.7]} 1... d5 {[%clk 0:02:49.1]} 2. c4 {[%clk 0:02:56.2]}
2... e6 {[%clk 0:02:48.7]} 3. Nc3 {[%clk 0:02:55.7]} 3... Nf6 {[%clk 0:02:48.9]}
4. cxd5 {[%clk 0:02:54]} 4... exd5 {[%clk 0:02:48.8]} 5. Bg5 {[%clk 0:02:54.3]}
5... Be7 {[%clk 0:02:48.8]} 6. e3 {[%clk 0:02:54.1]} 6... O-O {[%clk 0:02:49]}
7. Bd3 {[%clk 0:02:50.9]} 7... h6 {[%clk 0:02:49.2]} 8. Bh4 {[%clk 0:02:50.3]}
8... c6 {[%clk 0:02:49.4]} 9. Qc2 {[%clk 0:02:49]} 9... Nbd7 {[%clk 0:02:49.2]}
10. Nf3 {[%clk 0:02:48.5]} 10... Re8 {[%clk 0:02:49.6]} 11. O-O {[%clk
0:02:46.7]} 11... Ne4 {[%clk 0:02:49.6]} 12. Bxe4 {[%clk 0:02:44]} 12... dxe4
{[%clk 0:02:46.7]} 13. Qxe4 {[%clk 0:02:41.7]} 13... Bxh4 {[%clk 0:02:28.7]} 14.
Qxh4 {[%clk 0:02:40.4]} 14... Qxh4 {[%clk 0:02:27.2]} 15. Nxh4 {[%clk
0:02:37.1]} 15... Nf6 {[%clk 0:02:28.1]} 16. Nf3 {[%clk 0:02:33.5]} 16... Bf5
{[%clk 0:02:22.5]} 17. h3 {[%clk 0:02:29.7]} 17... Rad8 {[%clk 0:02:14.7]} 18.
Rfd1 {[%clk 0:02:27.6]} 18... b5 {[%clk 0:02:10.1]} 19. Rac1 {[%clk 0:02:26.4]}
19... b4 {[%clk 0:02:08.4]} 20. Na4 {[%clk 0:02:25.2]} 20... Rd6 {[%clk
0:01:58.7]} 21. Ne5 {[%clk 0:02:22.4]} 21... Rc8 {[%clk 0:01:53.9]} 22. Nc5
{[%clk 0:02:17.9]} 22... Ne4 {[%clk 0:01:40.1]} 23. f3 {[%clk 0:02:09.8]} 23...
Nxc5 {[%clk 0:01:37.6]} 24. Rxc5 {[%clk 0:02:06.6]} 24... Be6 {[%clk 0:01:34.8]}
25. b3 {[%clk 0:02:04.5]} 25... f6 {[%clk 0:01:25.3]} 26. Nd3 {[%clk 0:02:00.9]}
26... Rb8 {[%clk 0:01:22.2]} 27. Ra5 {[%clk 0:01:59.6]} 27... Bf5 {[%clk
0:00:50.1]} 28. Nc5 {[%clk 0:01:54.2]} 28... Re8 {[%clk 0:00:30.4]} 29. e4
{[%clk 0:01:50]} 29... Bg6 {[%clk 0:00:30.5]} 30. Kf2 {[%clk 0:01:46.5]} 30...
f5 {[%clk 0:00:27.9]} 31. exf5 {[%clk 0:01:39.2]} 31... Bxf5 {[%clk 0:00:27.4]}
32. Rxa7 {[%clk 0:01:39.7]} 32... Red8 {[%clk 0:00:26.9]} 33. Ke3 {[%clk
0:01:33.2]} 33... Re8+ {[%clk 0:00:24.5]} 34. Kf4 {[%clk 0:01:30.2]} 34... Bc2
{[%clk 0:00:16]} 35. Rd2 {[%clk 0:01:29]} 35... g5+ {[%clk 0:00:14.9]} 36. Kg3
{[%clk 0:01:29]} 36... Bg6 {[%clk 0:00:15.8]} 37. Rb7 {[%clk 0:01:24.8]} 37...
Red8 {[%clk 0:00:13.5]} 38. Re2 {[%clk 0:01:24.6]} 38... Rd5 {[%clk 0:00:14.4]}
39. Ree7 {[%clk 0:01:22.7]} 39... Bh5 {[%clk 0:00:07]} 40. Rg7+ {[%clk
0:01:20.4]} 40... Kf8 {[%clk 0:00:07.1]} 41. Ne6+ {[%clk 0:01:19.5]} 1-0

[Event "Late-Titled-Tuesday-Blitz-June-25-2024"]
[Site "Chess.com"]
[Date "2024.06.25"]
[Round "3"]
[White "ValeriyGrinev"]
[Black "IsaacWiebe"]
[Result "1-0"]
[WhiteElo "2591"]
[BlackElo "2359"]
[TimeControl "180+1"]
[EndTime "14:26:25 PDT"]
[Termination "ValeriyGrinev won by resignation"]

1. d4 {[%clk 0:03:00.9]} 1... Nf6 {[%clk 0:02:59]} 2. c4 {[%clk 0:03:01]} 2...
c5 {[%clk 0:02:56.2]} 3. Nf3 {[%clk 0:03:00.7]} 3... cxd4 {[%clk 0:02:53.9]} 4.
Nxd4 {[%clk 0:03:01.6]} 4... e6 {[%clk 0:02:51.9]} 5. g3 {[%clk 0:03:01.2]} 5...
d5 {[%clk 0:02:49.3]} 6. Bg2 {[%clk 0:03:00.2]} 6... e5 {[%clk 0:02:48.4]} 7.
Nf3 {[%clk 0:03:00]} 7... e4 {[%clk 0:02:46.7]} 8. Nd4 {[%clk 0:02:59.2]} 8...
Nc6 {[%clk 0:02:42.3]} 9. O-O {[%clk 0:02:58.4]} 9... Be7 {[%clk 0:02:21.3]} 10.
Nc3 {[%clk 0:02:55.6]} 10... dxc4 {[%clk 0:02:15.3]} 11. Nxc6 {[%clk 0:02:54.8]}
11... bxc6 {[%clk 0:02:15.2]} 12. Qa4 {[%clk 0:02:54.4]} 12... O-O {[%clk
0:02:13.2]} 13. Nxe4 {[%clk 0:02:51.1]} 13... Be6 {[%clk 0:02:10.3]} 14. Qxc6
{[%clk 0:02:44.5]} 14... Rb8 {[%clk 0:02:07.4]} 15. Ng5 {[%clk 0:02:32.9]} 15...
Bd5 {[%clk 0:01:39.6]} 16. Bxd5 {[%clk 0:02:32.4]} 16... Qxd5 {[%clk 0:01:40.5]}
17. Qxd5 {[%clk 0:02:29.8]} 17... Nxd5 {[%clk 0:01:41.4]} 18. Rd1 {[%clk
0:02:28.5]} 18... Nb4 {[%clk 0:01:40]} 19. Bf4 {[%clk 0:02:24.8]} 19... Rb5
{[%clk 0:01:33]} 20. Ne4 {[%clk 0:02:20.6]} 20... Nc6 {[%clk 0:01:10.6]} 21. b3
{[%clk 0:02:08]} 21... cxb3 {[%clk 0:01:05.7]} 22. axb3 {[%clk 0:02:08.9]} 22...
Rxb3 {[%clk 0:01:02.7]} 23. Rd7 {[%clk 0:02:08.7]} 23... f5 {[%clk 0:00:30.9]}
24. Rc7 {[%clk 0:01:46.7]} 24... fxe4 {[%clk 0:00:17]} 25. Rxc6 {[%clk
0:01:46.6]} 25... Ra8 {[%clk 0:00:13.3]} 26. Rc7 {[%clk 0:01:46.6]} 26... Bf6
{[%clk 0:00:10.9]} 27. Raxa7 {[%clk 0:01:46.5]} 27... Rxa7 {[%clk 0:00:10.6]}
28. Rxa7 {[%clk 0:01:47.4]} 28... h5 {[%clk 0:00:08]} 29. h4 {[%clk 0:01:45.2]}
29... Rb2 {[%clk 0:00:08.1]} 30. e3 {[%clk 0:01:45]} 30... Kh7 {[%clk
0:00:07.6]} 31. Ra4 {[%clk 0:01:44.2]} 31... Kg6 {[%clk 0:00:08]} 32. Rxe4
{[%clk 0:01:43.7]} 32... Kf5 {[%clk 0:00:08.2]} 33. Ra4 {[%clk 0:01:43.1]} 33...
Rc2 {[%clk 0:00:07.9]} 34. Kg2 {[%clk 0:01:39.3]} 34... g6 {[%clk 0:00:06.1]}
35. Bg5 {[%clk 0:01:38.8]} 35... Bxg5 {[%clk 0:00:05.7]} 36. Ra5+ {[%clk
0:01:38.7]} 36... Kf6 {[%clk 0:00:05.8]} 37. Rxg5 {[%clk 0:01:38.6]} 37... Ra2
{[%clk 0:00:05.8]} 38. Kf3 {[%clk 0:01:38.7]} 38... Ra4 {[%clk 0:00:06]} 39. Rb5
{[%clk 0:01:38.3]} 39... Rc4 {[%clk 0:00:05.8]} 40. Rd5 {[%clk 0:01:37.4]} 40...
Ra4 {[%clk 0:00:06.1]} 41. Rd4 {[%clk 0:01:37.8]} 41... Ra5 {[%clk 0:00:06]} 42.
e4 {[%clk 0:01:37.3]} 42... Ra3+ {[%clk 0:00:06.4]} 43. Kf4 {[%clk 0:01:37.4]}
43... Ra2 {[%clk 0:00:07.2]} 44. f3 {[%clk 0:01:37.7]} 44... Ke6 {[%clk
0:00:07.7]} 45. Rb4 {[%clk 0:01:37.3]} 45... Ra3 {[%clk 0:00:08.2]} 46. Rb6+
{[%clk 0:01:37.4]} 46... Kf7 {[%clk 0:00:09.1]} 47. Rc6 {[%clk 0:01:35.4]} 1-0

[Event "Late-Titled-Tuesday-Blitz-June-25-2024"]
[Site "Chess.com"]
[Date "2024.06.25"]
[Round "3"]
[White "Snowball-03"]
[Black "Eloist"]
[Result "1/2-1/2"]
[WhiteElo "2645"]
[BlackElo "2465"]
[TimeControl "180+1"]
[EndTime "14:26:26 PDT"]
[Termination "Game drawn by repetition"]

1. e4 {[%clk 0:03:00.9]} 1... e6 {[%clk 0:03:00.1]} 2. d4 {[%clk 0:03:00.5]}
2... d5 {[%clk 0:03:00.3]} 3. Nc3 {[%clk 0:03:01]} 3... Nf6 {[%clk 0:03:00.2]}
4. Bg5 {[%clk 0:03:00.1]} 4... dxe4 {[%clk 0:02:59.8]} 5. Nxe4 {[%clk 0:03:01]}
5... Be7 {[%clk 0:02:59]} 6. Nxf6+ {[%clk 0:03:01]} 6... Bxf6 {[%clk 0:02:58.7]}
7. Bxf6 {[%clk 0:03:00.7]} 7... Qxf6 {[%clk 0:02:58.8]} 8. Nf3 {[%clk
0:02:58.7]} 8... O-O {[%clk 0:02:58.3]} 9. Qd2 {[%clk 0:02:56.4]} 9... c5 {[%clk
0:02:57.4]} 10. O-O-O {[%clk 0:02:52.9]} 10... Rd8 {[%clk 0:02:56.4]} 11. Qc3
{[%clk 0:02:46.9]} 11... cxd4 {[%clk 0:02:44.7]} 12. Rxd4 {[%clk 0:02:47.8]}
12... Nc6 {[%clk 0:02:32.9]} 13. Rxd8+ {[%clk 0:02:44.3]} 13... Qxd8 {[%clk
0:02:32.6]} 14. Bb5 {[%clk 0:02:40.1]} 14... Bd7 {[%clk 0:02:24.1]} 15. Rd1
{[%clk 0:02:37.9]} 15... Qe7 {[%clk 0:02:18.6]} 16. Qd3 {[%clk 0:02:30.7]} 16...
Be8 {[%clk 0:02:07.1]} 17. Qd6 {[%clk 0:02:19.5]} 17... Qxd6 {[%clk 0:01:58]}
18. Rxd6 {[%clk 0:02:20.4]} 18... Kf8 {[%clk 0:01:55.6]} 19. g3 {[%clk
0:02:07.2]} 19... Ke7 {[%clk 0:01:54.5]} 20. Rd2 {[%clk 0:02:05.5]} 20... Rd8
{[%clk 0:01:46.8]} 21. Rxd8 {[%clk 0:02:05.4]} 21... Nxd8 {[%clk 0:01:41.8]} 22.
Bxe8 {[%clk 0:02:04.8]} 22... Kxe8 {[%clk 0:01:41.7]} 23. Kd2 {[%clk 0:02:05.1]}
23... Nc6 {[%clk 0:01:40.9]} 24. c3 {[%clk 0:02:05.4]} 24... e5 {[%clk
0:01:40.1]} 25. b4 {[%clk 0:02:04]} 25... f6 {[%clk 0:01:28.1]} 26. Kd3 {[%clk
0:01:52.7]} 26... Ke7 {[%clk 0:01:25.5]} 27. b5 {[%clk 0:01:52.3]} 27... Nd8
{[%clk 0:01:19.9]} 28. a4 {[%clk 0:01:47.1]} 28... Ne6 {[%clk 0:01:17.8]} 29.
Kc4 {[%clk 0:01:47.2]} 29... Kd6 {[%clk 0:01:17.4]} 30. Nd2 {[%clk 0:01:46.9]}
30... f5 {[%clk 0:01:17]} 31. Nb3 {[%clk 0:01:44.9]} 31... b6 {[%clk 0:01:05.7]}
32. a5 {[%clk 0:01:32.1]} 32... g5 {[%clk 0:01:04.6]} 33. axb6 {[%clk
0:01:31.5]} 33... axb6 {[%clk 0:01:04.8]} 34. Nd2 {[%clk 0:01:30.7]} 34... Nc5
{[%clk 0:00:54]} 35. f3 {[%clk 0:01:22.9]} 35... h5 {[%clk 0:00:53.2]} 36. Kb4
{[%clk 0:01:22.1]} 36... Nd3+ {[%clk 0:00:44.3]} 37. Kc4 {[%clk 0:01:22.2]}
37... Ne1 {[%clk 0:00:38.9]} 38. Kb4 {[%clk 0:01:20.5]} 38... Kd5 {[%clk
0:00:30.1]} 39. Nc4 {[%clk 0:01:11.5]} 39... Nd3+ {[%clk 0:00:25.5]} 40. Kb3
{[%clk 0:01:10.8]} 40... Nc5+ {[%clk 0:00:22.8]} 41. Kb4 {[%clk 0:01:11.1]}
41... Nd3+ {[%clk 0:00:21.4]} 42. Kb3 {[%clk 0:01:11]} 42... Nc5+ {[%clk
0:00:21.3]} 43. Kb4 {[%clk 0:01:11.1]} 43... Nd3+ {[%clk 0:00:21.2]} 1/2-1/2

[Event "Late-Titled-Tuesday-Blitz-June-25-2024"]
[Site "Chess.com"]
[Date "2024.06.25"]
[Round "3"]
[White "MITerryble"]
[Black "tdf98pantani"]
[Result "1-0"]
[WhiteElo "2977"]
[BlackElo "2678"]
[TimeControl "180+1"]
[EndTime "14:26:31 PDT"]
[Termination "MITerryble won by resignation"]

1. d4 {[%clk 0:02:43.7]} 1... Nf6 {[%clk 0:02:58.8]} 2. Nf3 {[%clk 0:02:30.7]}
2... d5 {[%clk 0:02:57.5]} 3. c4 {[%clk 0:02:30.9]} 3... c6 {[%clk 0:02:57.4]}
4. Nc3 {[%clk 0:02:29.7]} 4... dxc4 {[%clk 0:02:55.5]} 5. a4 {[%clk 0:02:29.6]}
5... Bf5 {[%clk 0:02:55.3]} 6. Ne5 {[%clk 0:02:30.2]} 6... Nbd7 {[%clk
0:02:54.3]} 7. Nxc4 {[%clk 0:02:30.3]} 7... Nb6 {[%clk 0:02:54.2]} 8. Ne5 {[%clk
0:02:31]} 8... a5 {[%clk 0:02:53.5]} 9. e3 {[%clk 0:02:31.6]} 9... Nfd7 {[%clk
0:02:39.6]} 10. Nxf7 {[%clk 0:02:29.7]} 10... Kxf7 {[%clk 0:02:38.6]} 11. Qf3
{[%clk 0:02:30]} 11... e6 {[%clk 0:02:35.7]} 12. g4 {[%clk 0:02:28.1]} 12... g6
{[%clk 0:02:32.5]} 13. e4 {[%clk 0:02:22.8]} 13... Nf6 {[%clk 0:02:24.1]} 14.
gxf5 {[%clk 0:02:18.1]} 14... exf5 {[%clk 0:02:23.4]} 15. e5 {[%clk 0:02:17.4]}
15... Nfd5 {[%clk 0:02:23.4]} 16. Bd2 {[%clk 0:02:00.2]} 16... Bb4 {[%clk
0:02:20]} 17. h4 {[%clk 0:01:55.9]} 17... h5 {[%clk 0:02:18.2]} 18. Bd3 {[%clk
0:01:48.4]} 18... Qd7 {[%clk 0:02:17.5]} 19. Rg1 {[%clk 0:01:46.4]} 19... Ne7
{[%clk 0:02:15.8]} 20. O-O-O {[%clk 0:01:45.8]} 20... Bxc3 {[%clk 0:02:14.2]}
21. bxc3 {[%clk 0:01:43.7]} 21... Qd5 {[%clk 0:02:07.4]} 22. Qxd5+ {[%clk
0:01:35]} 22... Nexd5 {[%clk 0:02:02.3]} 23. Kc2 {[%clk 0:01:14.7]} 23... Rhe8
{[%clk 0:02:00]} 24. Ra1 {[%clk 0:01:09.5]} 24... Nd7 {[%clk 0:01:40.7]} 25.
Rab1 {[%clk 0:01:06.5]} 25... Ra7 {[%clk 0:01:40.1]} 26. Rb3 {[%clk 0:00:46.1]}
26... Nf8 {[%clk 0:01:32.8]} 27. Rgb1 {[%clk 0:00:44.8]} 27... Re7 {[%clk
0:01:32.7]} 28. c4 {[%clk 0:00:44.1]} 28... Nb4+ {[%clk 0:01:20.3]} 29. Bxb4
{[%clk 0:00:44.3]} 29... axb4 {[%clk 0:01:20.8]} 30. Rxb4 {[%clk 0:00:45.2]}
30... Ne6 {[%clk 0:01:20.8]} 31. Kc3 {[%clk 0:00:45.3]} 31... c5 {[%clk
0:01:20.6]} 32. dxc5 {[%clk 0:00:46.2]} 32... Nxc5 {[%clk 0:01:21]} 33. Bc2
{[%clk 0:00:45]} 33... Rxe5 {[%clk 0:01:20.4]} 34. Rb5 {[%clk 0:00:45.3]} 34...
Ra6 {[%clk 0:00:58.9]} 35. Kd4 {[%clk 0:00:41.8]} 1-0

[Event "Late-Titled-Tuesday-Blitz-June-25-2024"]
[Site "Chess.com"]
[Date "2024.06.25"]
[Round "3"]
[White "Njal28"]
[Black "nindjaxx8"]
[Result "1-0"]
[WhiteElo "3104"]
[BlackElo "2733"]
[TimeControl "180+1"]
[EndTime "14:26:32 PDT"]
[Termination "Njal28 won by checkmate"]

1. e4 {[%clk 0:03:00.9]} 1... e6 {[%clk 0:02:54.2]} 2. d4 {[%clk 0:02:59.3]}
2... d5 {[%clk 0:02:44]} 3. exd5 {[%clk 0:03:00.1]} 3... exd5 {[%clk 0:02:41.4]}
4. Nf3 {[%clk 0:03:01]} 4... Nf6 {[%clk 0:02:41.4]} 5. Bd3 {[%clk 0:02:58.9]}
5... Bd6 {[%clk 0:02:41.9]} 6. O-O {[%clk 0:02:59]} 6... O-O {[%clk 0:02:34.1]}
7. h3 {[%clk 0:02:59.5]} 7... Be6 {[%clk 0:02:32.3]} 8. Nc3 {[%clk 0:02:59.3]}
8... c6 {[%clk 0:02:27.7]} 9. Re1 {[%clk 0:02:58.1]} 9... Nbd7 {[%clk 0:02:27]}
10. Ng5 {[%clk 0:02:53.4]} 10... Re8 {[%clk 0:02:26.4]} 11. f4 {[%clk
0:02:33.1]} 11... h6 {[%clk 0:02:03.6]} 12. Nxe6 {[%clk 0:02:31.5]} 12... Rxe6
{[%clk 0:02:03.1]} 13. Rxe6 {[%clk 0:02:30.9]} 13... fxe6 {[%clk 0:02:04]} 14.
Qe2 {[%clk 0:02:30.2]} 14... Nf8 {[%clk 0:02:03.9]} 15. Be3 {[%clk 0:02:27]}
15... Qc7 {[%clk 0:02:00.1]} 16. Rf1 {[%clk 0:02:24.5]} 16... a6 {[%clk
0:01:58.1]} 17. g4 {[%clk 0:02:22.3]} 17... c5 {[%clk 0:01:43.6]} 18. g5 {[%clk
0:02:19.4]} 18... cxd4 {[%clk 0:01:28.1]} 19. Bxd4 {[%clk 0:02:15.4]} 19... Bc5
{[%clk 0:01:24.9]} 20. Bxc5 {[%clk 0:02:09]} 20... Qxc5+ {[%clk 0:01:25.8]} 21.
Kh2 {[%clk 0:02:09]} 21... Ne4 {[%clk 0:01:08.1]} 22. gxh6 {[%clk 0:01:58.7]}
22... gxh6 {[%clk 0:00:25.8]} 23. Rg1+ {[%clk 0:01:47]} 23... Kf7 {[%clk
0:00:24.8]} 24. Qh5+ {[%clk 0:01:44.5]} 24... Ke7 {[%clk 0:00:24.7]} 25. Nxe4
{[%clk 0:01:42.3]} 25... Qd4 {[%clk 0:00:16.1]} 26. Qh4+ {[%clk 0:01:41.6]}
26... Kd7 {[%clk 0:00:15.3]} 27. Qf2 {[%clk 0:01:29.5]} 27... Qxb2 {[%clk
0:00:09]} 28. Nc5+ {[%clk 0:01:20.8]} 28... Kc6 {[%clk 0:00:08.3]} 29. Nb3
{[%clk 0:01:19]} 29... Qf6 {[%clk 0:00:05.3]} 30. f5 {[%clk 0:01:12.5]} 30...
Nd7 {[%clk 0:00:04.4]} 31. Nd4+ {[%clk 0:01:06.4]} 31... Kd6 {[%clk 0:00:04]}
32. Nxe6 {[%clk 0:01:04.6]} 32... Re8 {[%clk 0:00:03.3]} 33. Qf4+ {[%clk
0:01:03.7]} 33... Ne5 {[%clk 0:00:03.4]} 34. Qb4+ {[%clk 0:01:03.7]} 34... Kd7
{[%clk 0:00:03.5]} 35. Qxb7+ {[%clk 0:01:03.8]} 35... Kd6 {[%clk 0:00:02.6]} 36.
Qc7# {[%clk 0:01:04.1]} 1-0